{"text_format":"3","workbook":"xlsx","n_sheets":2,"sheets":["DÉMARRER","OUTIL DE BUDGÉTISATION"],"not_rendered":{"defined_names":2},"read":"whole","date_system":"1900"}

{"sheet":"DÉMARRER","index":0,"n_rows":7,"n_cols":2,"rows_kept":7}
[null,"À PROPOS DE CE MODÈLE"]
[null,"Suivez l’investissement initial, les avantages et les coûts liés à un site web à l’aide de cet outil de budgétisation de site web."]
[null,"Entrez le nom de la société et la date."]
[null,"Entrez les détails dans les tableaux pour calculer automatiquement les totaux et les mesures d’évaluation."]
[null,"Remarque :  "]
[null,"Des instructions supplémentaires sont disponibles dans la colonne A de la feuille de calcul OUTIL DE BUDGÉTISATION. Ce texte a été intentionnellement masqué. Pour supprimer le texte, sélectionnez la colonne A et choisissez SUPPRIMER. Pour afficher le texte, sélectionnez la colonne A et changez la couleur de la police."]
[null,"Pour en savoir plus sur les tableaux de la feuille de calcul, appuyez sur MAJ, puis sur F10 au sein d’un tableau, et sélectionnez les options TABLE et TEXTE DE REMPLACEMENT."]

{"sheet":"OUTIL DE BUDGÉTISATION","index":1,"n_rows":43,"n_cols":6,"rows_kept":43,"merged":[[14,1,14,5],[22,1,22,5],[30,1,30,5],[38,1,38,5]]}
["Créez un budget de site web dans cette feuille de calcul. Des instructions utiles sur l’utilisation de cette feuille de calcul sont disponibles dans les cellules de cette colonne. Appuyez sur la flèche Bas pour commencer."]
["Entrez le nom de la société dans la cellule de droite.","Nom de la société"]
["Le titre de cette feuille de calcul se trouve dans la cellule de droite.","Outil de budgétisation de site web"]
["Entrez la date dans la cellule de droite.","Date"]
["Un conseil figure dans la cellule de droite.","Les cellules grises contiennent des calculs qui ne doivent pas être modifiés."]
["Entrez les détails dans le tableau Taux, à partir de la cellule de droite. L’instruction suivante figure dans la cellule A10.","Données société","Taux"]
[null,"Taux de rendement requis",{"v":0.1,"d":"10%"}]
[null,"Taux d’imposition",{"v":0.3,"d":"30%"}]
[]
["Entrez les détails dans le tableau Investissement initial, à partir de la cellule de droite. L’instruction suivante figure dans la cellule A16.","Investissement initial dans le site web","ANNÉE","1","2","3"]
[null,"Matériel (par exemple, serveurs)",{"v":25000,"d":"25,000.00 €"}]
[null,"Logiciels (par exemple, logiciel de catalogue de commerce électronique)",{"v":15000,"d":"15,000.00 €"}]
[null,"Développement (par exemple, conception et développement de sites tiers)",{"v":150000,"d":"150,000.00 €"}]
[null,"Total des investissements initiaux",{"$f":"SUBTOTAL(109,InvestissementInitial[ANNÉE])","v":{"v":190000,"d":"190,000.00 €"}}]
[]
["Entrez les détails dans le tableau Avantages, à partir de la cellule de droite. L’instruction suivante figure dans la cellule A24.","Avantages du site web","ANNÉE","1","2","3"]
[null,"Ventes directes",null,{"v":15000,"d":"15,000.00 €"},{"v":50000,"d":"50,000.00 €"},{"v":75000,"d":"75,000.00 €"}]
[null,"Augmentation des ventes résultant de l’amélioration de l’efficacité des promotions/vendeurs",null,{"v":25000,"d":"25,000.00 €"},{"v":25000,"d":"25,000.00 €"},{"v":25000,"d":"25,000.00 €"}]
[null,"Augmentation des ventes résultant d’une participation accrue des partenaires",null,{"v":25000,"d":"25,000.00 €"},{"v":25000,"d":"25,000.00 €"},{"v":25000,"d":"25,000.00 €"}]
[null,"Réduction des frais de déplacement",null,{"v":25000,"d":"25,000.00 €"},{"v":25000,"d":"25,000.00 €"},{"v":25000,"d":"25,000.00 €"}]
[null,"Réduction des coûts de service à la clientèle",null,{"v":50000,"d":"50,000.00 €"},{"v":50000,"d":"50,000.00 €"},{"v":50000,"d":"50,000.00 €"}]
[null,"Total des avantages",null,{"$f":"SUBTOTAL(109,Avantages[1])","v":{"v":140000,"d":"140,000.00 €"}},{"$f":"SUBTOTAL(109,Avantages[2])","v":{"v":175000,"d":"175,000.00 €"}},{"$f":"SUBTOTAL(109,Avantages[3])","v":{"v":200000,"d":"200,000.00 €"}}]
[]
["Entrez les détails dans le tableau Coûts, à partir de la cellule de droite. Les valeurs sont automatiquement calculées dans les cellules contenant des formules. L’instruction suivante figure dans la cellule A32.","Coûts (hors investissements en capital initiaux)","ANNÉE","1","2","3"]
[null,"Coût des ventes",null,{"v":7500,"d":"7,500.00 €"},{"v":25000,"d":"25,000.00 €"},{"v":37500,"d":"37,500.00 €"}]
[null,"Maintenance",null,{"v":15000,"d":"15,000.00 €"},{"v":15000,"d":"15,000.00 €"},{"v":15000,"d":"15,000.00 €"}]
[null,"Gestion de projet, assistance à la clientèle",null,{"v":35000,"d":"35,000.00 €"},{"v":35000,"d":"35,000.00 €"},{"v":35000,"d":"35,000.00 €"}]
[null,"Publicité en ligne, inscription sur les moteurs de recherche",null,{"v":10000,"d":"10,000.00 €"},{"v":10000,"d":"10,000.00 €"},{"v":10000,"d":"10,000.00 €"}]
[null,"Amortissement des dépenses en capital (calcul basé sur une période de trois ans)",null,{"$f":"InvestissementInitial[[#Totals],[ANNÉE]]/3","v":{"v":63333.333333333336,"d":"63,333.33 €"}},{"$f":"InvestissementInitial[[#Totals],[ANNÉE]]/3","v":{"v":63333.333333333336,"d":"63,333.33 €"}},{"$f":"InvestissementInitial[[#Totals],[ANNÉE]]/3","v":{"v":63333.333333333336,"d":"63,333.33 €"}}]
[null,"Total des coûts",null,{"$f":"SUBTOTAL(109,Coûts[1])","v":{"v":130833.33333333334,"d":"130,833.33 €"}},{"$f":"SUBTOTAL(109,Coûts[2])","v":{"v":148333.33333333334,"d":"148,333.33 €"}},{"$f":"SUBTOTAL(109,Coûts[3])","v":{"v":160833.33333333334,"d":"160,833.33 €"}}]
[]
["Les valeurs sont automatiquement calculées dans le tableau Totaux, à partir de la cellule de droite. L’instruction suivante figure dans la cellule A40.","Totaux","ANNÉE","1","2","3"]
[null,"Avantages (coûts) nets",null,{"$f":"Avantages[[#Totals],[1]]-Coûts[[#Totals],[1]]","v":{"v":9166.666666666657,"d":"9,166.67 €"}},{"$f":"Avantages[[#Totals],[2]]-Coûts[[#Totals],[2]]","v":{"v":26666.666666666657,"d":"26,666.67 €"}},{"$f":"Avantages[[#Totals],[3]]-Coûts[[#Totals],[3]]","v":{"v":39166.66666666666,"d":"39,166.67 €"}}]
[null,"Taxes",null,{"$f":"D33*TauxImposition","v":{"v":2749.999999999997,"d":"2,750.00 €"}},{"$f":"E33*TauxImposition","v":{"v":7999.999999999996,"d":"8,000.00 €"}},{"$f":"F33*TauxImposition","v":{"v":11749.999999999996,"d":"11,750.00 €"}}]
[null,"Valeur après impôts",null,{"$f":"D33-D34","v":{"v":6416.666666666661,"d":"6,416.67 €"}},{"v":18666.66666666666,"d":"18,666.67 €"},{"v":27416.66666666666,"d":"27,416.67 €"}]
[null,"Amortissement rajouté",null,{"$f":"D29","v":{"v":63333.333333333336,"d":"63,333.33 €"}},{"$f":"E29","v":{"v":63333.333333333336,"d":"63,333.33 €"}},{"$f":"F29","v":{"v":63333.333333333336,"d":"63,333.33 €"}}]
[null,"Flux de trésorerie",{"$f":"-InvestissementInitial[[#Totals],[ANNÉE]]","v":{"v":-190000,"d":"-190,000.00 €"}},{"$f":"D35+D36","v":{"v":69750,"d":"69,750.00 €"}},{"v":82000,"d":"82,000.00 €"},{"v":90750,"d":"90,750.00 €"}]
[null,"Flux de trésorerie cumulé",{"$f":"C37","v":{"v":-190000,"d":"-190,000.00 €"}},{"$f":"C38+D37","v":{"v":-120250,"d":"-120,250.00 €"}},{"v":-38250,"d":"-38,250.00 €"},{"v":52500,"d":"52,500.00 €"}]
[]
["Les mesures d’évaluation sont automatiquement calculées dans le tableau Mesures, à partir de la cellule de droite.","Mesures d’évaluation","Valeurs"]
[null,"Valeur actuelle nette (VAN)",{"$f":"C37+(NPV(_xlfn.SINGLE(TauxDeRendement),D37:F37))","v":{"v":9359.504132231377,"d":"9,359.50 €"}}]
[null,"Taux de rendement interne (TRI)",{"$f":"IRR(C37:F37)","v":{"v":0.12655165144706393,"d":"12.66%"}}]
[null,"Délai de récupération (en années)",{"$f":"IF(F38<=0,\"Dépasse 3 ans\",IF(E38<=0,(F37-F38)/F37+2,IF(D38<=0,(E37-E38)/E37+1,IF(C38<=0,(D37-D38)/D37,\"N/A\"))))","v":{"v":2.4214876033057853,"d":"2.42"}}]